fUSD/lending_fUSD_20251201
["ID","MTS","AMOUNT","RATE_DAILY","PERIOD"]
[395302715,1764600640438,-811.19406858,0.000159,2]
[395302716,1764600640448,-811.19406858,0.00015914,2]
[395302717,1764600640459,-281.13165358,0.00015929,2]
[395302718,1764600640471,-2139.19484314,0.0001593,2]
[395302719,1764600640480,-157.31336437,0.0001593,2]
[395302720,1764600640490,-189.67548685,0.00015938,2]
[395302721,1764600640500,-4524.17933846,0.00015938,2]
[395302722,1764600640511,-4482.0,0.0001596,2]
[395302723,1764600640520,-15718.8954656,0.00015985,2]
[395302724,1764600640530,-686.74,0.00015994,2]
[395302726,1764600640540,-500.0,0.00016014,2]
[395302728,1764600640550,-500.0,0.00016014,2]
[395302730,1764600640560,-500.0,0.00016014,2]
[395302732,1764600640570,-500.0,0.00016014,2]
[395302734,1764600640579,-500.0,0.00016014,2]
[395302737,1764600640592,-500.0,0.00016014,2]
[395302739,1764600640602,-593.21617524,0.00016014,2]
[395302741,1764600640611,-52269.22853135,0.00016015,2]
[395302743,1764600640622,-1551.09231494,0.00016015,2]
[395302745,1764600640634,-999.0,0.00016015,2]
[395302766,1764600640819,-1.7e-07,0.00016015,2]
[395302768,1764600640832,-130250.62008892,0.00016015,2]
[395302770,1764600640843,-574930.05906462,0.00016015,2]
[395302772,1764600640852,-2139.19484312,0.00016038,2]
[395302774,1764600640862,-4524.17933838,0.00016045,2]
[395302776,1764600640871,-3782.58490893,0.00016066,2]
[395302778,1764600640880,-300.0,0.00016085,2]
[395302780,1764600640890,-151.0,0.00016085,2]
[395302782,1764600640899,-1500.0,0.00016085,2]
[395302784,1764600640910,-500.0,0.00016085,2]
[395302786,1764600640919,-250.0,0.00016085,2]
[395302788,1764600640929,-1500.0,0.00016085,2]
[395302789,1764600640939,-500.0,0.00016085,2]
[395302791,1764600640948,-254.91048614,0.00016085,2]
[395302793,1764600640958,-6485.44053371,0.00016085,2]
[395302794,1764600640967,-500.0,0.00016085,2]
[395302795,1764600640976,-1500.0,0.00016085,2]
[395302796,1764600640986,-500.0,0.00016085,2]
[395302797,1764600640995,-1500.0,0.00016085,2]
[395302798,1764600641004,-250.0,0.00016085,2]
[395302799,1764600641017,-500.0,0.00016085,2]
[395302800,1764600641026,-1500.0,0.00016085,2]
[395302801,1764600641035,-354.84418245,0.00016085,2]
[395302802,1764600641045,-500.0,0.00016085,2]
[395302803,1764600641055,-1500.0,0.00016085,2]
[395302804,1764600641064,-500.0,0.00016085,2]
[395302805,1764600641074,-1500.0,0.00016085,2]
[395302806,1764600641083,-514.84070869,0.00016085,2]
[395302807,1764600641094,-10000.0,0.00016085,2]
[395302808,1764600641103,-620.0,0.00016085,2]
[395302809,1764600641112,-10000.0,0.00016085,2]
[395302810,1764600641122,-10000.0,0.00016085,2]
[395302811,1764600641131,-10000.0,0.00016085,2]
[395302812,1764600641141,-10000.0,0.00016085,2]
[395302813,1764600641152,-578.20924308,0.00016085,2]
[395302814,1764600641162,-10000.0,0.00016085,2]
[395302815,1764600641173,-10000.0,0.00016085,2]
[395302816,1764600641182,-10000.0,0.00016085,2]
[395302817,1764600641192,-10000.0,0.00016085,2]
[395302818,1764600641201,-187.78006524,0.00016085,2]
[395302819,1764600641211,-1000.0,0.00016085,2]
[395302820,1764600641221,-1000.0,0.00016085,2]
[395302821,1764600641230,-1000.0,0.00016085,2]
[395302822,1764600641239,-2500.0,0.00016085,2]
[395302823,1764600641249,-187.78006524,0.00016085,2]
[395302824,1764600641259,-1000.0,0.00016085,2]
[395302825,1764600641268,-2500.0,0.00016085,2]
[395302826,1764600641278,-151.0,0.00016085,2]
[395302827,1764600641287,-1000.0,0.00016085,2]
[395302828,1764600641297,-2500.0,0.00016085,2]
[395302829,1764600641307,-1000.0,0.00016085,2]
[395302830,1764600641317,-2500.0,0.00016085,2]
[395302831,1764600641327,-2500.0,0.00016085,2]
[395302832,1764600641336,-2500.0,0.00016085,2]
[395302833,1764600641346,-3000.0,0.00016085,2]
[395302834,1764600641355,-2500.0,0.00016085,2]
[395302835,1764600641364,-3000.0,0.00016085,2]
[395302836,1764600641373,-2500.0,0.00016085,2]
[395302837,1764600641390,-2500.0,0.00016085,2]
[395302838,1764600641406,-3000.0,0.00016085,2]
[395302839,1764600641923,-3000.0,0.00016085,2]
[395302840,1764600641934,-3000.0,0.00016085,2]
[395302841,1764600641944,-1000.0,0.00016085,2]
[395302842,1764600641959,-151.0,0.00016085,2]
[395302843,1764600641970,-3000.0,0.00016085,2]
[395302844,1764600641980,-1000.0,0.00016085,2]
[395302845,1764600641989,-3000.0,0.00016085,2]
[395302846,1764600641999,-1000.0,0.00016085,2]
[395302847,1764600642010,-8000.0,0.00016085,2]
[395302848,1764600642020,-3000.0,0.00016085,2]
[395302849,1764600642030,-200.8894483,0.00016085,2]
[395302850,1764600642041,-1000.0,0.00016085,2]
[395302851,1764600642051,-8000.0,0.00016085,2]
[395302852,1764600642061,-3000.0,0.00016085,2]
[395302853,1764600642071,-151.0,0.00016085,2]
[395302854,1764600642081,-1000.0,0.00016085,2]
[395302855,1764600642091,-1000.0,0.00016085,2]
[395302856,1764600642100,-1000.0,0.00016085,2]
[395302857,1764600642110,-8000.0,0.00016085,2]
[395302858,1764600642120,-156.587,0.00016085,2]
[395302859,1764600642130,-1000.0,0.00016085,2]
[395302860,1764600642140,-1000.0,0.00016085,2]
[395302861,1764600642149,-1000.0,0.00016085,2]
[395302862,1764600642161,-8000.0,0.00016085,2]
[395302863,1764600642171,-157.27859704,0.00016085,2]
[395302864,1764600642183,-1000.0,0.00016085,2]
[395302865,1764600642193,-1000.0,0.00016085,2]
[395302866,1764600642203,-1000.0,0.00016085,2]
[395302867,1764600642213,-8000.0,0.00016085,2]
[395302868,1764600642223,-1000.0,0.00016085,2]
[395302869,1764600642233,-1000.0,0.00016085,2]
[395302870,1764600642243,-1000.0,0.00016085,2]
[395302871,1764600642253,-8000.0,0.00016085,2]
[395302872,1764600642263,-1000.0,0.00016085,2]
[395302873,1764600642274,-1000.0,0.00016085,2]
[395302874,1764600642284,-1000.0,0.00016085,2]
[395302875,1764600642294,-8000.0,0.00016085,2]
[395302876,1764600642303,-1000.0,0.00016085,2]
[395302877,1764600642313,-762.94247186,0.00016085,2]
[395302878,1764600642323,-8000.0,0.00016085,2]
[395302879,1764600642333,-1000.0,0.00016085,2]
[395302880,1764600642343,-1000.0,0.00016085,2]
[395302881,1764600642354,-8000.0,0.00016085,2]
[395302882,1764600642364,-1000.0,0.00016085,2]
[395302883,1764600642374,-1000.0,0.00016085,2]
[395302884,1764600642384,-1000.0,0.00016085,2]
[395302885,1764600642394,-1000.0,0.00016085,2]
[395302886,1764600642404,-311.1,0.00016085,2]
[395302887,1764600642414,-500.0,0.00016085,2]
[395302888,1764600642429,-500.0,0.00016085,2]
[395302889,1764600642439,-500.0,0.00016085,2]
[395302890,1764600642449,-500.0,0.00016085,2]
[395302891,1764600642459,-2750.0,0.00016085,2]
[395302892,1764600642471,-500.0,0.00016085,2]
[395302893,1764600642480,-550.0,0.00016085,2]
[395302894,1764600642490,-500.0,0.00016085,2]
[395302895,1764600642500,-500.0,0.00016085,2]
[395302896,1764600642510,-500.0,0.00016085,2]
[395302897,1764600642520,-500.0,0.00016085,2]
[395302898,1764600642530,-500.0,0.00016085,2]
[395302899,1764600642539,-500.0,0.00016085,2]
[395302900,1764600642549,-248.71531821,0.00016085,2]
[395302901,1764600642559,-8272.86942617,0.00016115,2]
[395302902,1764600642569,-4482.0,0.00016121,2]
[395302903,1764600642578,-2139.19484312,0.00016146,2]
[395302904,1764600642588,-4524.17933838,0.00016152,2]
[395302905,1764600642598,-1000.0,0.00016221,2]
[395302906,1764600642608,-555.00053518,0.00016221,2]
[395302907,1764600642618,-500.0,0.00016221,2]
[395302908,1764600642628,-500.0,0.00016221,2]
[395302909,1764600642637,-987.452036,0.00016221,2]
[395302910,1764600642647,-715.10308759,0.00016221,2]
[395302911,1764600642659,-1001.24854415,0.00016221,2]
[395302912,1764600642669,-1000.95083099,0.00016221,2]
[395302913,1764600642679,-530.66702702,0.00016221,2]
[395302914,1764600642689,-1000.0,0.00016221,2]
[395302915,1764600642699,-1000.0,0.00016221,2]
[395302916,1764600642709,-1000.0,0.00016221,2]
[395302917,1764600642720,-1000.0,0.00016221,2]
[395302918,1764600642731,-1000.0,0.00016221,2]
[395302919,1764600642741,-2139.19484312,0.00016253,2]
[395302920,1764600642752,-157.31336436,0.00016253,2]
[395302921,1764600642762,-686.74,0.00016268,2]
[395302922,1764600642772,-963.06931158,0.00016284,2]
[395302923,1764600642782,-4482.0,0.00016294,2]
[395302924,1764600642793,-409.0,0.00016335,2]
[395302925,1764600642803,-2139.19484312,0.00016361,2]
[395302926,1764600642812,-500.0,0.00016438,2]
[395302927,1764600642823,-500.0,0.00016438,2]
[395302928,1764600642833,-500.0,0.00016438,2]
[395302929,1764600642843,-500.0,0.00016438,2]
[395302930,1764600642853,-8490.71,0.00016438,2]
[395302931,1764600642863,-800.0,0.00016438,2]
[395302932,1764600642873,-163.99,0.0001644,2]
[395302933,1764600642883,-409.0,0.00016448,2]
[395302934,1764600642893,-6556.0,0.0001645,2]
[395302935,1764600642903,-409.0,0.0001645,2]
[395302936,1764600642913,-409.0,0.00016467,2]
[395302937,1764600642924,-2139.19484312,0.00016469,2]
[395302938,1764600642934,-409.0,0.00016472,2]
[395302939,1764600642944,-587.0,0.00016479,2]
[395302940,1764600642954,-409.0,0.00016532,2]
[395302941,1764600642964,-686.74,0.00016542,2]
[395302942,1764600642974,-500.0,0.00016551,2]
[395302943,1764600642984,-1322.0,0.00016554,2]
[395302944,1764600642994,-1603.0,0.00016554,2]
[395302946,1764600643004,-610.0,0.00016554,2]
[395302948,1764600643014,-3442.0,0.00016554,2]
[395302950,1764600643024,-613.0,0.00016554,2]
[395302952,1764600643034,-1258.0,0.00016554,2]
[395302953,1764600643045,-6507.0,0.00016554,2]
[395302954,1764600643055,-605.048,0.00016554,2]
[395302956,1764600643065,-4704.0,0.00016554,2]
[395302958,1764600643076,-409.0,0.00016556,2]
[395302959,1764600643086,-2351.0,0.00016574,2]
[395302960,1764600643096,-2139.19484312,0.00016577,2]
[395302961,1764600643107,-157.31336436,0.00016577,2]
[395302962,1764600643117,-250.0,0.00016578,2]
[395302963,1764600643128,-263.28,0.00016583,2]
[395302964,1764600643138,-2204.127,0.00016604,2]
[395302965,1764600643149,-172.782,0.00016621,2]
[395302966,1764600643159,-533.88981491,0.00016633,2]
[395302967,1764600643170,-573.27122,0.00016633,2]
[395302968,1764600643180,-151.0,0.00016633,2]
[395302969,1764600643189,-702.194131,0.0001666,2]
[395302970,1764600643199,-427.65493559,0.00016663,2]
[395302971,1764600643209,-2139.19484312,0.00016684,2]
[395302972,1764600643220,-1000.0,0.000167,2]
[395302973,1764600643230,-1089.16818457,0.00016768,2]
[395302974,1764600643239,-434.82176489,0.00016768,2]
[395302975,1764600643249,-1500.0,0.00016768,2]
[395302976,1764600643259,-1500.0,0.00016768,2]
[395302977,1764600643269,-500.0,0.00016768,2]
[395302978,1764600643279,-2139.19484312,0.00016792,2]
[395302979,1764600643288,-1000.0,0.000168,2]
[395302980,1764600643298,-686.77706299,0.00016816,2]
[395302981,1764600643308,-4508.88831,0.0001683,2]
[395302982,1764600643318,-2000.0,0.00016864,2]
[395302983,1764600643328,-288.0,0.0001688,2]
[395302984,1764600643339,-1000.0,0.0001689,2]
[395302985,1764600643349,-500.0,0.00016899,2]
[395302986,1764600643359,-638.79821334,0.000169,2]
[395302987,1764600643369,-1561.21737764,0.000169,2]
[395302988,1764600643379,-2139.19484312,0.000169,2]
[395302989,1764600643389,-157.31336436,0.000169,2]
[395302990,1764600643398,-1000.0,0.000169,2]
[395302991,1764600643409,-168.86517034,0.000169,2]
[395302992,1764600643419,-189.67548685,0.000169,2]
[395302993,1764600643432,-821.47168518,0.000169,2]
[395302994,1764600643442,-409.0,0.00016924,2]
[395302995,1764600643451,-409.0,0.00016949,2]
[395302996,1764600643461,-15940.0,0.00016959,2]
[395302997,1764600643470,-409.0,0.00016963,2]
[395302998,1764600643480,-931.0,0.00016965,2]
[395303000,1764600643490,-150.0,0.00016965,2]
[395303002,1764600643501,-500.0,0.00016965,2]
[395303004,1764600643512,-489.0,0.00016965,2]
[395303006,1764600643523,-1360.0,0.00016965,2]
[395303008,1764600643532,-500.0,0.00016965,2]
[395303010,1764600643542,-150.0,0.00016965,2]
[395303012,1764600643551,-150.0,0.00016965,2]
[395303014,1764600643561,-500.0,0.00016965,2]
[395303016,1764600643570,-500.0,0.00016965,2]
[395303018,1764600643580,-500.0,0.00016965,2]
[395303019,1764600643590,-150.0,0.00016965,2]
[395303020,1764600643599,-500.0,0.00016965,2]
[395303021,1764600643609,-500.0,0.00016965,2]
[395303022,1764600643619,-249.25554546,0.00016965,2]
[395303023,1764600643628,-155.0383737,0.00016965,2]
[395303024,1764600643638,-150.0,0.00016965,2]
[395303025,1764600643648,-500.0,0.00016983,2]
[395303026,1764600643659,-963.06931158,0.0001699,2]
[395303027,1764600643669,-963.06931158,0.0001699,2]
[395303028,1764600643680,-13600.9192348,0.00016992,2]
[395303029,1764600643690,-250.0,0.00016995,2]
[395303030,1764600643699,-250.0,0.00016995,2]
[395303031,1764600643709,-250.0,0.00016995,2]
[395303032,1764600643719,-250.0,0.00016995,2]
[395303033,1764600643729,-250.0,0.00016995,2]
[395303034,1764600643739,-250.0,0.00016995,2]
[395303035,1764600643750,-250.0,0.00016995,2]
[395303036,1764600643760,-250.0,0.00016995,2]
[395303037,1764600643771,-250.0,0.00016995,2]
[395303038,1764600643781,-250.0,0.00016995,2]
[395303039,1764600643790,-250.0,0.00016995,2]
[395303040,1764600643800,-1223.1636258,0.00016996,2]
[395303041,1764600643810,-20774.9475874,0.00016996,2]
[395303042,1764600643821,-300.0,0.00016999,2]
[395303043,1764600643831,-300.0,0.00016999,2]
[395303044,1764600643841,-500.0,0.00016999,2]
[395303045,1764600643851,-500.0,0.00016999,2]
[395303046,1764600643861,-500.0,0.00016999,2]
[395303047,1764600643871,-500.0,0.00016999,2]
[395303048,1764600643881,-500.0,0.00016999,2]
[395303049,1764600643892,-500.0,0.00016999,2]
[395303050,1764600643903,-500.0,0.00016999,2]
[395303051,1764600643913,-500.0,0.00016999,2]
[395303052,1764600643923,-500.0,0.00016999,2]
[395303053,1764600643935,-500.0,0.00016999,2]
[395303054,1764600643948,-500.0,0.00016999,2]
[395303055,1764600643959,-300.0,0.00016999,2]
[395303056,1764600643970,-1776696.34012463,0.00017,2]
[395303057,1764600643980,-1251.43,0.00017,3]
[395303058,1764600643990,-497.0,0.00017,2]
[395303059,1764600644000,-250.0,0.00017,2]
[395303060,1764600644011,-68994.95485219,0.00017,2]
[395303061,1764600644021,-2476156.14326593,0.00017,2]
[395303062,1764600644080,-5860.0317327,0.00017,2]
[395303063,1764600644361,-4524.17933838,0.00016259,2]
[395303064,1764600644371,-252.0,0.00016554,2]
[395303065,1764600644381,-869080.98550956,0.00017,2]
[395303066,1764600644390,-225593.17862276,0.00017,2]
[395303072,1764600646329,-324.72089973,0.00016761,2]
[395303073,1764600646471,-681.43273154,0.00015938,2]
[395303074,1764600646482,-1412.97733828,0.00016761,2]
[395303075,1764600646492,-688.70117424,0.000169,2]
[395303076,1764600646503,-5872.88875594,0.00017,2]
[395303087,1764601196141,176.71554099,0.00025,120]
[395303088,1764601205700,453.42046316,0.00014314,7]
[395303095,1764601484870,-396.9425,0.00012447,2]
[395303096,1764601484892,-250.0,0.00013691,2]
[395303097,1764601484915,-250.0,0.00013691,2]
[395303098,1764601484938,-369.3739271,0.00013691,2]
[395303099,1764601484961,-300.0,0.00013954,2]
[395303100,1764601484983,-300.0,0.00013954,2]
[395303101,1764601485006,-195.0,0.00014004,2]
[395303102,1764601485028,-170.1,0.00014843,2]
[395303103,1764601485053,-1200.0,0.00015086,2]
[395303104,1764601485075,-2782.1135729,0.00015087,2]
[395303134,1764601834488,-2000.0,0.00014781,2]
[395303135,1764601834499,-210.0,0.00014781,2]
[395303136,1764601834508,-390.14,0.00014921,2]
[395303137,1764601834520,-2249.52,0.00014921,2]
[395303138,1764601834530,-810.88508301,0.00015087,2]
[395303141,1764601838427,-633.4636506,0.00015087,2]
[395303142,1764601838440,-447.66174487,0.00015087,2]
[395303143,1764601838467,-1085.35594862,0.00015087,2]
[395303144,1764601838478,-195.0,0.00015117,2]
[395303145,1764601838487,-6440.4,0.00015148,2]
[395303146,1764601838497,-195.0,0.0001527,2]
[395303147,1764601838507,-166.66,0.00015392,2]
[395303148,1764601838517,-2706.21,0.00015453,2]
[395303149,1764601838527,-2706.21,0.00015453,2]
[395303150,1764601838538,-151.0,0.0001546,2]
[395303151,1764601838548,-223.97886466,0.00015462,2]
[395303152,1764601838558,-500.0,0.00015462,2]
[395303153,1764601838567,-211.88518864,0.00015462,2]
[395303154,1764601838578,-224.41833605,0.00015462,2]
[395303155,1764601838587,-244.61630524,0.00015462,2]
[395303156,1764601838597,-433.70639015,0.00015462,2]
[395303179,1764601840376,-66.29360985,0.00015462,2]
[395303181,1764601840387,-500.0,0.00015462,2]
[395303183,1764601840396,-500.0,0.00015462,2]
[395303184,1764601840406,-427.56155446,0.00015462,2]
[395303185,1764601840418,-500.0,0.00015462,2]
[395303186,1764601840428,-500.0,0.00015462,2]
[395303187,1764601840438,-500.0,0.00015462,2]
[395303188,1764601840448,-456.18724346,0.00015462,2]
[395303189,1764601840459,-500.0,0.00015462,2]
[395303190,1764601840469,-500.0,0.00015462,2]
[395303191,1764601840479,-500.0,0.00015462,2]
[395303192,1764601840489,-500.0,0.00015462,2]
[395303193,1764601840499,-500.0,0.00015462,2]
[395303194,1764601840509,-500.0,0.00015462,2]
[395303195,1764601840519,-500.0,0.00015462,2]
[395303196,1764601840529,-2604.07099121,0.00015463,2]
[395303197,1764601840544,-757395.92900879,0.00015463,2]
[395303198,1764601840554,-151.0,0.00015475,2]
[395303199,1764601840564,-898.16,0.00015484,2]
[395303200,1764601840574,-2053.647,0.00015485,2]
[395303201,1764601840583,-171.61,0.00015485,2]
[395303202,1764601840593,-1041.1,0.00015485,2]
[395303203,1764601840602,-299.99,0.00015485,2]
[395303204,1764601840611,-5309.34,0.00015485,2]
[395303205,1764601840620,-1457.89,0.00015485,2]
[395303206,1764601840630,-10846.53462635,0.00015485,2]
[395303207,1764601840639,-20079.84080912,0.00015518,2]
[395303208,1764601840648,-151.0,0.00015563,2]
[395303209,1764601840657,-151.0,0.00015563,2]
[395303210,1764601840667,-151.0,0.00015563,2]
[395303211,1764601840677,-151.0,0.00015563,2]
[395303212,1764601840686,-151.0,0.00015563,2]
[395303213,1764601840696,-151.0,0.00015563,2]
[395303214,1764601840705,-151.0,0.00015563,2]
[395303215,1764601840714,-277.33982032,0.00015563,2]
[395303216,1764601840723,-200.0,0.00015563,2]
[395303217,1764601840732,-200.0,0.00015563,2]
[395303218,1764601840741,-200.0,0.00015563,2]
[395303219,1764601840750,-500.0,0.00015563,2]
[395303220,1764601840759,-151.0,0.00015563,2]
[395303221,1764601840768,-151.0,0.00015563,2]
[395303223,1764601840778,-151.0,0.00015563,2]
[395303225,1764601840787,-151.0,0.00015563,2]
[395303227,1764601840798,-151.0,0.00015563,2]
[395303228,1764601840809,-151.0,0.00015563,2]
[395303230,1764601840819,-151.0,0.00015563,2]
[395303231,1764601840828,-151.0,0.00015563,2]
[395303232,1764601840838,-151.0,0.00015563,2]
[395303233,1764601840849,-151.0,0.00015563,2]
[395303234,1764601840859,-151.0,0.00015563,2]
[395303235,1764601840869,-151.0,0.00015563,2]
[395303236,1764601840879,-151.0,0.00015563,2]
[395303237,1764601840888,-218.969743,0.00015563,2]
[395303238,1764601840898,-500.0,0.00015572,2]
[395303239,1764601840908,-500.0,0.00015572,2]
[395303240,1764601840919,-500.0,0.00015572,2]
[395303241,1764601840929,-500.0,0.00015572,2]
[395303242,1764601840938,-500.0,0.00015572,2]
[395303243,1764601840948,-394.01424542,0.00015572,2]
[395303244,1764601840958,-500.0,0.00015572,2]
[395303245,1764601840967,-500.0,0.00015572,2]
[395303246,1764601840976,-500.0,0.00015572,2]
[395303247,1764601840986,-406.74316143,0.00015572,2]
[395303248,1764601840996,-200.0,0.00015572,2]
[395303249,1764601841005,-500.0,0.00015572,2]
[395303250,1764601841020,-500.274,0.00015572,2]
[395303251,1764601841030,-500.0,0.00015573,2]
[395303252,1764601841040,-500.0,0.00015573,2]
[395303253,1764601841049,-500.0,0.00015573,2]
[395303254,1764601841058,-500.0,0.00015573,2]
[395303255,1764601841067,-233.06885898,0.00015573,2]
[395303256,1764601841077,-610.74491434,0.00015573,2]
[395303257,1764601841087,-500.0,0.00015573,2]
[395303258,1764601841096,-1500.0,0.00015618,2]
[395303259,1764601841106,-282.0,0.00015624,2]
[395303260,1764601841115,-3178.27,0.00015662,2]
[395303261,1764601841125,-516.50455865,0.00015673,2]
[395303262,1764601841134,-207.34062351,0.00015673,2]
[395303263,1764601841143,-552.19905586,0.00015673,2]
[395303264,1764601841153,-329.72446081,0.00015673,2]
[395303265,1764601841162,-230.20656864,0.00015673,2]
[395303266,1764601841173,-500.5084331,0.00015673,2]
[395303267,1764601841183,-160.09311838,0.00015673,2]
[395303268,1764601841192,-160.09865388,0.00015673,2]
[395303269,1764601841202,-500.0,0.00015673,2]
[395303270,1764601841211,-500.0,0.00015673,2]
[395303271,1764601841221,-500.0,0.00015673,2]
[395303272,1764601841231,-500.0,0.00015673,2]
[395303273,1764601841240,-500.0,0.00015673,2]
[395303274,1764601841250,-500.0,0.00015673,2]
[395303275,1764601841260,-500.0,0.00015673,2]
[395303276,1764601841270,-501.70301498,0.00015673,2]
[395303277,1764601841280,-338.74802037,0.00015673,2]
[395303278,1764601841290,-500.0,0.00015673,2]
[395303279,1764601841300,-500.0,0.00015673,2]
[395303280,1764601841310,-501.72529391,0.00015673,2]
[395303281,1764601841320,-500.0,0.00015673,2]
[395303282,1764601841329,-500.0,0.00015673,2]
[395303283,1764601841339,-500.0,0.00015673,2]
[395303284,1764601841349,-500.0,0.00015673,2]
[395303285,1764601841359,-160.09684565,0.00015673,2]
[395303286,1764601841369,-500.0,0.00015673,2]
[395303287,1764601841380,-500.0,0.00015673,2]
[395303288,1764601841389,-500.0,0.00015673,2]
[395303289,1764601841399,-495.9241853,0.00015673,2]
[395303290,1764601841409,-500.0,0.00015673,2]
[395303291,1764601841420,-500.0,0.00015673,2]
[395303292,1764601841429,-500.0,0.00015673,2]
[395303293,1764601841438,-500.0,0.00015673,2]
[395303294,1764601841448,-557.4345573,0.00015673,2]
[395303295,1764601841458,-898.16,0.00015758,2]
[395303296,1764601841467,-1000.0,0.00015915,2]
[395303297,1764601841477,-2000.0,0.00016,2]
[395303298,1764601841487,-500.0,0.00016014,2]
[395303299,1764601841497,-500.0,0.00016014,2]
[395303300,1764601841506,-500.0,0.00016014,2]
[395303301,1764601841515,-500.0,0.00016014,2]
[395303302,1764601841525,-291.27618921,0.00016014,2]
[395303303,1764601841534,-500.0,0.00016014,2]
[395303304,1764601841544,-477.0130093,0.00016014,2]
[395303305,1764601841554,-500.0,0.00016014,2]
[395303306,1764601841563,-500.0,0.00016014,2]
[395303307,1764601841573,-500.0,0.00016014,2]
[395303308,1764601841583,-500.0,0.00016014,2]
[395303309,1764601841592,-500.0,0.00016014,2]
[395303310,1764601841602,-413.92477484,0.00016014,2]
[395303311,1764601841612,-500.0,0.00016014,2]
[395303312,1764601841621,-500.0,0.00016014,2]
[395303313,1764601841631,-411.9192268,0.00016014,2]
[395303314,1764601841640,-151.0,0.00016023,2]
[395303315,1764601841651,-166.66,0.00016027,2]
[395303316,1764601841660,-898.16,0.00016032,2]
[395303317,1764601841670,-20079.84080905,0.00016075,2]
[395303318,1764601841680,-6000.0,0.00016085,2]
[395303319,1764601841689,-500.0,0.00016085,2]
[395303320,1764601841698,-248.71531821,0.00016085,2]
[395303321,1764601841707,-1000.0,0.00016085,2]
[395303322,1764601841717,-500.0,0.00016085,2]
[395303323,1764601841726,-1000.0,0.00016085,2]
[395303324,1764601841736,-1000.0,0.00016085,2]
[395303325,1764601841745,-411.35130193,0.00016085,2]
[395303326,1764601841754,-514.84070869,0.00016085,2]
[395303327,1764601841764,-151.0,0.00016085,2]
[395303328,1764601841774,-311.1,0.00016085,2]
[395303329,1764601841784,-2500.0,0.00016085,2]
[395303330,1764601841793,-2500.0,0.00016085,2]
[395303331,1764601841807,-1000.0,0.00016085,2]
[395303332,1764601841817,-151.0,0.00016085,2]
[395303333,1764601841826,-500.0,0.00016085,2]
[395303334,1764601841835,-3000.0,0.00016085,2]
[395303335,1764601841845,-382.0011413,0.00016085,2]
[395303336,1764601841855,-3000.0,0.00016085,2]
[395303337,1764601841864,-579.71658743,0.00016085,2]
[395303338,1764601841875,-151.0,0.00016085,2]
[395303339,1764601841884,-2750.0,0.00016085,2]
[395303340,1764601841893,-6000.0,0.00016085,2]
[395303341,1764601841903,-1741.53388498,0.00016085,2]
[395303342,1764601841913,-300.0,0.00016085,2]
[395303343,1764601841923,-151.0,0.00016085,2]
[395303344,1764601841932,-578.20924308,0.00016085,2]
[395303345,1764601841941,-295.79603794,0.00016085,2]
[395303346,1764601841951,-200.0,0.00016111,2]
[395303347,1764601841961,-695.49212577,0.00016121,2]
[395303348,1764601841971,-1000.0,0.00016121,2]
[395303349,1764601841982,-360.33354768,0.00016121,2]
[395303350,1764601841991,-1000.0,0.00016121,2]
[395303351,1764601842001,-2750.0,0.0001614,2]
[395303352,1764601842011,-707.028212,0.0001615,2]
[395303353,1764601842020,-17752.49975948,0.00016187,2]
[395303354,1764601842030,-2750.0,0.00016195,2]